fUSD/lending_fUSD_20250202
["ID","MTS","AMOUNT","RATE_DAILY","PERIOD"]
[351285473,1738505574355,-2422.99,0.00013287,2]
[351285474,1738505574364,-1805.01,0.00013287,2]
[351285475,1738505574374,-8941.69,0.00013287,2]
[351285476,1738505574384,-1720.61,0.00013287,2]
[351285477,1738505574394,-500.0,0.00013287,2]
[351285478,1738505574404,-924.98,0.00013287,2]
[351285479,1738505574414,-753.96,0.00013287,2]
[351285480,1738505574424,-2796.09,0.00013287,2]
[351285481,1738505574434,-1515.55,0.00013287,2]
[351285482,1738505574444,-516.18764366,0.00013287,2]
[351285483,1738505574454,-890.83,0.00013287,2]
[351285484,1738505574465,-8022.15,0.00013287,2]
[351285485,1738505574475,-1171.94,0.00013287,2]
[351285486,1738505574485,-500.0,0.00013287,2]
[351285487,1738505574495,-741.26,0.00013287,2]
[351285488,1738505574505,-1314.16,0.00013287,2]
[351285489,1738505574516,-2827.17,0.00013287,2]
[351285490,1738505574526,-596.08,0.00013287,2]
[351285491,1738505574536,-500.0,0.00013287,2]
[351285492,1738505574546,-2587.99,0.00013287,2]
[351285493,1738505574557,-155.292379,0.00013287,2]
[351285494,1738505574568,-770.44,0.00013287,2]
[351285495,1738505574578,-651.22,0.00013287,2]
[351285496,1738505574588,-323.22780951,0.000134,2]
[351285497,1738505574599,-323.22780939,0.000134,2]
[351285498,1738505574608,-323.22780939,0.000134,2]
[351285499,1738505574619,-323.22780939,0.000134,2]
[351285500,1738505574629,-323.22780939,0.000134,2]
[351285501,1738505574640,-323.22780939,0.000134,2]
[351285502,1738505574650,-323.22780939,0.000134,2]
[351285503,1738505574660,-323.22780939,0.000134,2]
[351285504,1738505574670,-323.22780939,0.000134,2]
[351285505,1738505574680,-323.22780939,0.000134,2]
[351285506,1738505574690,-323.22780939,0.000134,2]
[351285507,1738505574700,-323.22780939,0.000134,2]
[351285508,1738505574709,-323.22780939,0.000134,2]
[351285509,1738505574719,-323.22780939,0.000134,2]
[351285510,1738505574729,-323.22780939,0.000134,2]
[351285511,1738505574738,-323.22780939,0.000134,2]
[351285512,1738505574747,-323.22780939,0.000134,2]
[351285513,1738505574756,-323.22780939,0.000134,2]
[351285514,1738505574767,-323.22780939,0.000134,2]
[351285515,1738505574777,-323.22780939,0.000134,2]
[351285516,1738505574786,-323.22780939,0.000134,2]
[351285517,1738505574796,-323.22780939,0.000134,2]
[351285518,1738505574806,-323.22780939,0.000134,2]
[351285519,1738505574815,-323.22780939,0.000134,2]
[351285520,1738505574825,-323.22780939,0.000134,2]
[351285521,1738505574834,-559.46,0.00013424,2]
[351285522,1738505574846,-803.7,0.00013424,2]
[351285523,1738505574858,-500.0,0.00013424,2]
[351285524,1738505574870,-500.0,0.00013424,2]
[351285525,1738505574882,-801.06,0.00013424,2]
[351285526,1738505574892,-231.65576466,0.00013424,2]
[351285527,1738505574905,-773.23,0.00013424,2]
[351285528,1738505574918,-759.9,0.00013424,2]
[351285529,1738505574927,-1260.15,0.00013424,2]
[351285530,1738505574937,-589.03,0.00013424,2]
[351285531,1738505574947,-500.0,0.00013424,2]
[351285532,1738505574958,-1063.41,0.00013424,2]
[351285533,1738505574968,-673.02,0.00013424,2]
[351285534,1738505574977,-821.68,0.00013424,2]
[351285535,1738505574987,-549.88,0.00013424,2]
[351285536,1738505574997,-500.0,0.00013424,2]
[351285537,1738505575007,-703.15,0.00013424,2]
[351285538,1738505575018,-500.0,0.00013424,2]
[351285539,1738505575028,-828.9,0.00013424,2]
[351285540,1738505575037,-627.47,0.00013424,2]
[351285541,1738505575047,-731.11,0.00013424,2]
[351285542,1738505575057,-500.0,0.00013424,2]
[351285543,1738505575067,-592.69,0.00013424,2]
[351285544,1738505575077,-625.97,0.00013424,2]
[351285545,1738505575086,-500.0,0.00013424,2]
[351285546,1738505575096,-661.86,0.00013424,2]
[351285547,1738505575106,-552.57,0.00013424,2]
[351285548,1738505575116,-3015.63,0.00013424,2]
[351285549,1738505575125,-635.12,0.00013424,2]
[351285550,1738505575135,-1112.86,0.00013424,2]
[351285551,1738505575145,-511.08,0.00013424,2]
[351285552,1738505575155,-910.85,0.00013424,2]
[351285553,1738505575165,-738.14,0.00013424,2]
[351285554,1738505575175,-1482.76,0.00013424,2]
[351285555,1738505575185,-500.0,0.00013424,2]
[351285556,1738505575195,-500.0,0.00013424,2]
[351285557,1738505575205,-545.77,0.00013424,2]
[351285558,1738505575215,-735.2,0.00013424,2]
[351285559,1738505575225,-717.38,0.00013424,2]
[351285560,1738505575235,-2333.39,0.00013424,2]
[351285561,1738505575245,-618.28,0.00013424,2]
[351285562,1738505575255,-2305.89,0.00013424,2]
[351285563,1738505575267,-703.3,0.00013424,2]
[351285564,1738505575277,-2217.46,0.00013424,2]
[351285565,1738505575287,-500.0,0.00013424,2]
[351285566,1738505575297,-573.42,0.00013424,2]
[351285567,1738505575308,-2053.36,0.00013424,2]
[351285568,1738505575318,-1106.04,0.00013424,2]
[351285569,1738505575328,-2139.13,0.00013424,2]
[351285570,1738505575339,-1316.15,0.00013424,2]
[351285571,1738505575349,-208.79849551,0.00013424,2]
[351285572,1738505575359,-548.83,0.00013424,2]
[351285573,1738505575369,-553.21,0.00013424,2]
[351285574,1738505575379,-525.3,0.00013424,2]
[351285575,1738505575389,-2325.54,0.00013424,2]
[351285576,1738505575399,-1109.74,0.00013424,2]
[351285577,1738505575409,-500.44,0.00013424,2]
[351285578,1738505575420,-681.73,0.00013424,2]
[351285579,1738505575430,-677.93,0.00013424,2]
[351285580,1738505575441,-513.34,0.00013424,2]
[351285581,1738505575452,-1154.2,0.00013424,2]
[351285582,1738505575464,-2022.69,0.00013424,2]
[351285583,1738505575474,-685.35,0.00013424,2]
[351285584,1738505575485,-500.0,0.00013424,2]
[351285585,1738505575496,-453.86892705,0.00013424,2]
[351285586,1738505575506,-419.01127141,0.00013424,2]
[351285587,1738505575517,-550.64,0.00013424,2]
[351285588,1738505575528,-1342.11,0.00013424,2]
[351285589,1738505575540,-499.31730238,0.00013424,2]
[351285590,1738505575552,-2093.39,0.00013424,2]
[351285591,1738505575563,-880.18,0.00013424,2]
[351285592,1738505575574,-1643.92,0.00013424,2]
[351285593,1738505575585,-500.0,0.00013424,2]
[351285594,1738505575596,-793.33,0.00013424,2]
[351285595,1738505575607,-500.0,0.00013424,2]
[351285596,1738505575618,-1232.16,0.00013424,2]
[351285597,1738505575629,-588.54,0.00013424,2]
[351285598,1738505575641,-534.34,0.00013424,2]
[351285599,1738505575651,-538.87,0.00013424,2]
[351285600,1738505575661,-793.28,0.00013424,2]
[351285601,1738505575672,-500.0,0.00013424,2]
[351285602,1738505575682,-1592.88,0.00013424,2]
[351285603,1738505575693,-616.53,0.00013424,2]
[351285604,1738505575703,-500.0,0.00013424,2]
[351285605,1738505575713,-1854.87,0.00013424,2]
[351285606,1738505575724,-1690.33,0.00013424,2]
[351285607,1738505575734,-218.69297365,0.00013424,2]
[351285608,1738505575745,-500.0,0.00013424,2]
[351285609,1738505575755,-534.43,0.00013424,2]
[351285610,1738505575767,-500.0,0.00013424,2]
[351285611,1738505575777,-508.93,0.00013424,2]
[351285612,1738505575788,-637.72,0.00013424,2]
[351285613,1738505575798,-1150.84,0.00013424,2]
[351285614,1738505575808,-508.66,0.00013424,2]
[351285615,1738505575818,-500.0,0.00013424,2]
[351285616,1738505575828,-586.07,0.00013424,2]
[351285617,1738505575838,-800.25,0.00013424,2]
[351285618,1738505575848,-731.54,0.00013424,2]
[351285619,1738505575859,-1305.07,0.00013424,2]
[351285620,1738505576103,-1841.9,0.00013424,2]
[351285621,1738505576115,-734.22,0.00013424,2]
[351285622,1738505576125,-500.0,0.00013424,2]
[351285623,1738505576135,-1731.58,0.00013424,2]
[351285624,1738505576144,-573.1,0.00013424,2]
[351285625,1738505576154,-500.0,0.00013424,2]
[351285626,1738505576163,-500.0,0.00013424,2]
[351285627,1738505576172,-1366.78,0.00013424,2]
[351285628,1738505576182,-203.94480969,0.00013424,2]
[351285629,1738505576192,-1447.06,0.00013424,2]
[351285630,1738505576202,-955.56,0.00013424,2]
[351285631,1738505576212,-521.42,0.00013424,2]
[351285632,1738505576222,-854.39,0.00013424,2]
[351285633,1738505576232,-904.27,0.00013424,2]
[351285634,1738505576242,-2762.56,0.00013424,2]
[351285635,1738505576252,-500.0,0.00013424,2]
[351285636,1738505576261,-666.98,0.00013424,2]
[351285637,1738505576272,-783.0,0.00013424,2]
[351285638,1738505576282,-500.0,0.00013424,2]
[351285639,1738505576291,-2104.01,0.00013424,2]
[351285640,1738505576300,-2287.85,0.00013424,2]
[351285641,1738505576310,-944.74,0.00013424,2]
[351285642,1738505576320,-738.27,0.00013424,2]
[351285643,1738505576330,-505.82,0.00013424,2]
[351285644,1738505576340,-1297.85,0.00013424,2]
[351285645,1738505576350,-1519.92,0.00013424,2]
[351285646,1738505576360,-500.0,0.00013424,2]
[351285647,1738505576370,-500.0,0.00013424,2]
[351285648,1738505576380,-306.10962916,0.00013424,2]
[351285649,1738505576390,-643.77,0.00013424,2]
[351285650,1738505576399,-784.02,0.00013424,2]
[351285651,1738505576409,-529.45,0.00013424,2]
[351285652,1738505576419,-500.0,0.00013424,2]
[351285653,1738505576429,-1418.55,0.00013424,2]
[351285654,1738505576440,-517.07,0.00013424,2]
[351285655,1738505576450,-1420.23,0.00013424,2]
[351285656,1738505576461,-2181.51,0.00013424,2]
[351285657,1738505576472,-1225.35,0.00013424,2]
[351285658,1738505576482,-500.0,0.00013424,2]
[351285659,1738505576492,-500.0,0.00013424,2]
[351285660,1738505576503,-2783.69,0.00013424,2]
[351285661,1738505576513,-500.0,0.00013424,2]
[351285662,1738505576523,-942.19,0.00013424,2]
[351285663,1738505576533,-507.86,0.00013424,2]
[351285664,1738505576543,-844.52,0.00013424,2]
[351285665,1738505576554,-1267.86,0.00013424,2]
[351285666,1738505576569,-1642.95,0.00013424,2]
[351285667,1738505576579,-500.0,0.00013424,2]
[351285668,1738505576590,-632.5,0.00013424,2]
[351285669,1738505576600,-717.96,0.00013424,2]
[351285670,1738505576611,-862.89,0.00013424,2]
[351285671,1738505576621,-978.15,0.00013424,2]
[351285672,1738505576631,-1851.1,0.00013424,2]
[351285673,1738505576641,-591.76,0.00013424,2]
[351285674,1738505576652,-722.67,0.00013424,2]
[351285675,1738505576662,-500.0,0.00013424,2]
[351285676,1738505576672,-500.0,0.00013424,2]
[351285677,1738505576682,-520.38,0.00013424,2]
[351285678,1738505576692,-500.0,0.00013424,2]
[351285679,1738505576702,-500.0,0.00013424,2]
[351285680,1738505576712,-1708.12,0.00013424,2]
[351285681,1738505576721,-523.57,0.00013424,2]
[351285682,1738505576732,-760.88,0.00013424,2]
[351285683,1738505576744,-500.0,0.00013424,2]
[351285684,1738505576754,-811.43,0.00013424,2]
[351285685,1738505576765,-1373.61,0.00013424,2]
[351285686,1738505576774,-1105.09,0.00013424,2]
[351285687,1738505576784,-747.24,0.00013424,2]
[351285688,1738505576794,-1175.0,0.00013424,2]
[351285689,1738505576804,-1419.66,0.00013424,2]
[351285690,1738505576813,-899.67,0.00013424,2]
[351285691,1738505576823,-502.70992506,0.00013424,2]
[351285692,1738505576832,-814.85,0.00013424,2]
[351285693,1738505576842,-967.34,0.00013424,2]
[351285694,1738505576852,-984.06,0.00013424,2]
[351285695,1738505576862,-709.72,0.00013424,2]
[351285696,1738505576872,-256.59767102,0.00013424,2]
[351285697,1738505576881,-509.47,0.00013424,2]
[351285698,1738505576891,-1529.4,0.00013424,2]
[351285699,1738505576900,-1025.92,0.00013424,2]
[351285700,1738505576910,-580.72,0.00013424,2]
[351285701,1738505576919,-500.0,0.00013424,2]
[351285702,1738505576929,-736.8,0.00013424,2]
[351285703,1738505576939,-616.49680177,0.00013424,2]
[351285704,1738505576948,-500.0,0.00013424,2]
[351285705,1738505576958,-500.0,0.00013424,2]
[351285706,1738505576967,-794.58,0.00013424,2]
[351285707,1738505576977,-515.19,0.00013424,2]
[351285708,1738505576987,-500.0,0.00013424,2]
[351285709,1738505576996,-551.09,0.00013424,2]
[351285710,1738505577006,-1457.11,0.00013424,2]
[351285711,1738505577016,-848.94,0.00013424,2]
[351285712,1738505577026,-512.04,0.00013424,2]
[351285713,1738505577035,-1457.16,0.00013424,2]
[351285714,1738505577044,-562.76,0.00013424,2]
[351285715,1738505577054,-1032.24,0.00013424,2]
[351285716,1738505577063,-1061.96,0.00013424,2]
[351285717,1738505577074,-1015.65,0.00013424,2]
[351285718,1738505577084,-679.22,0.00013424,2]
[351285719,1738505577093,-1177.9,0.00013424,2]
[351285720,1738505577103,-510.71,0.00013424,2]
[351285721,1738505577113,-584.42,0.00013424,2]
[351285722,1738505577122,-1657.79,0.00013424,2]
[351285723,1738505577132,-1057.32,0.00013424,2]
[351285724,1738505577142,-500.0,0.00013424,2]
[351285725,1738505577151,-737.32,0.00013424,2]
[351285726,1738505577160,-865.79,0.00013424,2]
[351285727,1738505577170,-1316.4,0.00013424,2]
[351285728,1738505577179,-671.26,0.00013424,2]
[351285729,1738505577189,-751.62,0.00013424,2]
[351285730,1738505577199,-750.62,0.00013424,2]
[351285731,1738505577208,-1011.53,0.00013424,2]
[351285732,1738505577217,-1248.28,0.00013424,2]
[351285733,1738505577227,-519.27,0.00013424,2]
[351285734,1738505577236,-775.41,0.00013424,2]
[351285735,1738505577246,-650.78,0.00013424,2]
[351285736,1738505577256,-787.2,0.00013424,2]
[351285737,1738505577266,-500.0,0.00013424,2]
[351285738,1738505577276,-1398.59,0.00013424,2]
[351285739,1738505577285,-2098.34,0.00013424,2]
[351285740,1738505577295,-1717.3,0.00013424,2]
[351285741,1738505577304,-535.92,0.00013424,2]
[351285742,1738505577314,-520.83,0.00013424,2]
[351285743,1738505577324,-1388.03,0.00013424,2]
[351285744,1738505577334,-696.21,0.00013424,2]
[351285745,1738505577343,-638.42,0.00013424,2]
[351285746,1738505577353,-1523.64,0.00013424,2]
[351285747,1738505577362,-1438.93,0.00013424,2]
[351285748,1738505577371,-500.0,0.00013424,2]
[351285749,1738505577382,-1164.79,0.00013424,2]
[351285750,1738505577391,-500.0,0.00013424,2]
[351285751,1738505577401,-2008.34,0.00013424,2]
[351285752,1738505577411,-867.5,0.00013424,2]
[351285753,1738505577420,-500.0,0.00013424,2]
[351285754,1738505577430,-930.83,0.00013424,2]
[351285755,1738505577439,-1142.86,0.00013424,2]
[351285756,1738505577449,-1063.97,0.00013424,2]
[351285757,1738505577459,-5963.38,0.00013424,2]
[351285758,1738505577468,-632.65,0.00013424,2]
[351285759,1738505577478,-528.98,0.00013424,2]
[351285760,1738505577488,-939.46,0.00013424,2]
[351285761,1738505577497,-2575.73,0.00013424,2]
[351285762,1738505577507,-1411.82,0.00013424,2]
[351285763,1738505577517,-4332.07,0.00013424,2]
[351285764,1738505577527,-500.0,0.00013424,2]
[351285765,1738505577537,-623.14,0.00013424,2]
[351285766,1738505577547,-808.47,0.00013424,2]
[351285767,1738505577561,-1167.23,0.00013424,2]
[351285768,1738505577570,-1073.14,0.00013424,2]
[351285769,1738505577580,-1266.06,0.00013424,2]
[351285770,1738505577591,-1643.83,0.00013424,2]
[351285771,1738505577601,-2134.84,0.00013424,2]
[351285772,1738505577611,-1098.43,0.00013424,2]
[351285773,1738505577620,-636.47,0.00013424,2]
[351285774,1738505577630,-2806.74,0.00013424,2]
[351285775,1738505577641,-500.0,0.00013424,2]
[351285776,1738505577650,-7531.63,0.00013424,2]
[351285777,1738505577660,-4457.82,0.00013424,2]
[351285778,1738505577669,-500.0,0.00013424,2]
[351285779,1738505577679,-1431.15,0.00013424,2]
[351285780,1738505577689,-1068.36,0.00013424,2]
[351285781,1738505577698,-3317.75,0.00013424,2]
[351285782,1738505577708,-3236.23,0.00013424,2]
[351285783,1738505577717,-998.58,0.00013424,2]
[351285784,1738505577726,-215.29270871,0.00013424,2]
[351285785,1738505577736,-649.19,0.00013424,2]
[351285786,1738505577745,-3603.07,0.00013424,2]
[351285787,1738505577755,-647.76,0.00013424,2]
[351285788,1738505577765,-518.71,0.00013424,2]
[351285789,1738505577775,-2773.67,0.00013424,2]
[351285790,1738505577784,-3478.77,0.00013424,2]
[351285791,1738505577794,-1377.07,0.00013424,2]
[351285792,1738505577804,-500.0,0.00013424,2]
[351285793,1738505577813,-1559.79,0.00013424,2]
[351285794,1738505577822,-993.51,0.00013424,2]
[351285795,1738505577831,-1353.14,0.00013424,2]
[351285796,1738505577841,-1889.01,0.00013424,2]
[351285797,1738505577850,-532.1,0.00013424,2]
[351285798,1738505577860,-5584.57,0.00013424,2]
[351285799,1738505577869,-628.58,0.00013424,2]
[351285800,1738505577879,-500.0,0.00013424,2]
[351285801,1738505577887,-1416.56,0.00013424,2]
[351285802,1738505577897,-966.92,0.00013424,2]
[351285803,1738505577907,-1706.09,0.00013424,2]
[351285804,1738505577916,-820.07,0.00013424,2]
[351285805,1738505577926,-865.01,0.00013424,2]
[351285806,1738505577935,-555.56,0.00013424,2]
[351285807,1738505577945,-500.0,0.00013424,2]
[351285808,1738505577955,-6599.2,0.00013424,2]
[351285809,1738505577964,-4362.97,0.00013424,2]
[351285810,1738505577974,-3023.49,0.00013424,2]
[351285811,1738505577983,-1475.65,0.00013424,2]
[351285812,1738505577993,-786.41,0.00013424,2]
[351285813,1738505578003,-1337.09,0.00013424,2]
[351285814,1738505578012,-1205.96,0.00013424,2]
[351285815,1738505578024,-2817.82,0.00013424,2]
[351285816,1738505578034,-1903.11,0.00013424,2]
[351285817,1738505578043,-2360.45,0.00013424,2]
[351285818,1738505578053,-583.26,0.00013424,2]
[351285819,1738505578062,-934.52,0.00013424,2]
[351285820,1738505578072,-1388.22,0.00013424,2]
[351285821,1738505578082,-2432.51,0.00013424,2]
[351285822,1738505578091,-2243.95,0.00013424,2]
[351285823,1738505578101,-609.67,0.00013424,2]
[351285824,1738505578110,-1262.46,0.00013424,2]
[351285825,1738505578119,-2572.68,0.00013424,2]
[351285826,1738505578129,-1950.74,0.00013424,2]
[351285827,1738505578138,-1181.19,0.00013424,2]
[351285828,1738505578148,-871.86,0.00013424,2]
[351285829,1738505578157,-1126.88,0.00013424,2]
[351285830,1738505578166,-541.6,0.00013424,2]
[351285831,1738505578175,-2805.0,0.00013424,2]
[351285832,1738505578184,-500.0,0.00013424,2]
[351285833,1738505578193,-500.0,0.00013424,2]
[351285834,1738505578203,-524.24955558,0.00013424,2]
[351285835,1738505578212,-3490.69,0.00013424,2]
[351285836,1738505578221,-2478.61,0.00013424,2]
[351285837,1738505578231,-1886.99,0.00013424,2]
[351285838,1738505578240,-693.62,0.00013424,2]
[351285839,1738505578250,-1166.42,0.00013424,2]
[351285840,1738505578259,-4718.72,0.00013424,2]
[351285841,1738505578270,-646.83,0.00013424,2]
[351285842,1738505578280,-1219.56,0.00013424,2]
[351285843,1738505578294,-1713.43,0.00013424,2]
[351285844,1738505578303,-500.0,0.00013424,2]
[351285845,1738505578313,-764.96,0.00013424,2]
[351285846,1738505578323,-742.31,0.00013424,2]
[351285847,1738505578333,-585.08,0.00013424,2]
[351285848,1738505578343,-5247.94,0.00013424,2]
[351285849,1738505578355,-1545.21,0.00013424,2]
[351285850,1738505578364,-5157.65,0.00013424,2]
[351285851,1738505578374,-2240.61,0.00013424,2]
[351285852,1738505578383,-1481.58,0.00013424,2]
[351285853,1738505578393,-535.67,0.00013424,2]
[351285854,1738505578402,-1399.19,0.00013424,2]
[351285855,1738505578411,-3226.98,0.00013424,2]
[351285856,1738505578421,-1311.36,0.00013424,2]
[351285857,1738505578430,-519.18068249,0.00013424,2]
[351285858,1738505578529,-1485.26,0.00013424,2]
[351285859,1738505578539,-5680.36,0.00013424,2]
[351285860,1738505578549,-2300.21,0.00013424,2]
[351285861,1738505578560,-2521.42,0.00013424,2]
[351285862,1738505578572,-2782.57,0.00013424,2]
[351285863,1738505578581,-1766.1,0.00013424,2]
[351285864,1738505578590,-1697.0,0.00013424,2]
[351285865,1738505578599,-1939.71,0.00013424,2]
[351285866,1738505578610,-787.48,0.00013424,2]
[351285867,1738505578619,-1300.79,0.00013424,2]
[351285868,1738505578628,-3484.78,0.00013424,2]
[351285869,1738505578639,-500.0,0.00013424,2]
[351285870,1738505578648,-512.49,0.00013424,2]
[351285871,1738505578657,-1213.23,0.00013424,2]
[351285872,1738505578667,-5629.82,0.00013424,2]
[351285873,1738505578676,-2449.26,0.00013424,2]
[351285874,1738505578686,-758.01,0.00013424,2]
[351285875,1738505578695,-848.99,0.00013424,2]
[351285876,1738505578705,-888.7,0.00013424,2]
[351285877,1738505578714,-4605.95,0.00013424,2]
[351285878,1738505578723,-2359.63,0.00013424,2]
[351285879,1738505578733,-892.49,0.00013424,2]
[351285880,1738505578741,-871.23,0.00013424,2]
[351285881,1738505578750,-1094.04,0.00013424,2]
[351285882,1738505578759,-6442.67,0.00013424,2]
[351285883,1738505578770,-1297.27,0.00013424,2]
[351285884,1738505578779,-2052.81,0.00013424,2]
[351285885,1738505578788,-2655.71,0.00013424,2]
[351285886,1738505578797,-1885.94,0.00013424,2]
[351285887,1738505578806,-1553.08,0.00013424,2]
[351285888,1738505578815,-10441.41,0.00013424,2]
[351285889,1738505578824,-1012.3,0.00013424,2]
[351285890,1738505578833,-500.0,0.00013424,2]
[351285891,1738505578842,-4514.04,0.00013424,2]
[351285892,1738505578851,-3003.61,0.00013424,2]
[351285893,1738505578860,-2902.94,0.00013424,2]
[351285894,1738505578869,-1964.45,0.00013424,2]
[351285895,1738505578878,-4716.6,0.00013424,2]
[351285896,1738505578887,-1593.35,0.00013424,2]
[351285897,1738505578896,-1637.22,0.00013424,2]
[351285898,1738505578906,-882.55,0.00013424,2]
[351285899,1738505578915,-3416.51,0.00013424,2]
[351285900,1738505578924,-4127.67,0.00013424,2]
[351285901,1738505578933,-9172.95,0.00013424,2]
[351285902,1738505578943,-716.69,0.00013424,2]
[351285903,1738505578952,-3935.05,0.00013424,2]
[351285904,1738505578962,-994.51,0.00013424,2]
[351285905,1738505578971,-544.42986136,0.00013424,2]
[351285906,1738505578979,-2231.33,0.00013424,2]
[351285907,1738505578989,-646.36,0.00013424,2]
[351285908,1738505578998,-7703.46,0.00013424,2]
[351285909,1738505579007,-612.75,0.00013424,2]
[351285910,1738505579017,-6130.86,0.00013424,2]
[351285911,1738505579027,-1008.29,0.00013424,2]
[351285912,1738505579036,-4888.75,0.00013424,2]
[351285913,1738505579045,-4468.98,0.00013424,2]
[351285914,1738505579055,-874.52,0.00013424,2]
[351285915,1738505579064,-7017.85,0.00013424,2]
[351285916,1738505579073,-7067.83,0.00013424,2]
[351285917,1738505579082,-504.51,0.00013424,2]
[351285918,1738505579091,-1694.57,0.00013424,2]
[351285919,1738505579100,-809.09,0.00013424,2]
[351285920,1738505579110,-1463.68,0.00013424,2]
[351285921,1738505579119,-500.0,0.00013424,2]
[351285922,1738505579128,-957.1,0.00013424,2]
[351285923,1738505579138,-5901.35,0.00013424,2]
[351285924,1738505579147,-25450.62,0.00013424,2]
[351285925,1738505579156,-3194.77,0.00013424,2]
[351285926,1738505579165,-972.11,0.00013424,2]
[351285927,1738505579175,-500.0,0.00013424,2]
[351285928,1738505579184,-978.28,0.00013424,2]
[351285929,1738505579194,-1927.34,0.00013424,2]
[351285930,1738505579203,-1313.38,0.00013424,2]
[351285931,1738505579213,-1822.98,0.00013424,2]
[351285932,1738505579222,-2811.74,0.00013424,2]
[351285933,1738505579231,-2290.65,0.00013424,2]
[351285934,1738505579240,-4241.49,0.00013424,2]
[351285935,1738505579249,-2753.15,0.00013424,2]
[351285936,1738505579258,-778.33,0.00013424,2]
[351285937,1738505579268,-11875.49,0.00013424,2]
[351285938,1738505579278,-3179.79,0.00013424,2]
[351285939,1738505579287,-590.79,0.00013424,2]
[351285940,1738505579297,-2422.99,0.00013424,2]
[351285941,1738505579307,-1805.01,0.00013424,2]
[351285942,1738505579316,-8941.69,0.00013424,2]
[351285943,1738505579326,-1720.61,0.00013424,2]
[351285944,1738505579335,-500.0,0.00013424,2]
[351285945,1738505579344,-924.98,0.00013424,2]
[351285946,1738505579353,-753.96,0.00013424,2]
[351285947,1738505579362,-2796.09,0.00013424,2]
[351285948,1738505579371,-1515.55,0.00013424,2]
[351285949,1738505579381,-890.83,0.00013424,2]
[351285950,1738505579390,-8022.15,0.00013424,2]
[351285951,1738505579401,-1171.94,0.00013424,2]
[351285952,1738505579411,-500.0,0.00013424,2]
[351285953,1738505579420,-741.26,0.00013424,2]
[351285954,1738505579430,-1314.16,0.00013424,2]
[351285955,1738505579439,-2827.17,0.00013424,2]
[351285956,1738505579449,-596.08,0.00013424,2]
[351285957,1738505579459,-468.48353355,0.00013424,2]
[351285958,1738505579468,-2587.99,0.00013424,2]
[351285959,1738505579478,-155.292379,0.00013424,2]
[351285960,1738505579487,-770.44,0.00013424,2]
[351285961,1738505579497,-651.22,0.00013424,2]
[351285962,1738505579506,-208.33333,0.0001347,2]
[351285963,1738505579516,-151.811,0.00013482,2]
[351285964,1738505579527,-150.0,0.00013482,2]
[351285965,1738505579537,-323.22780939,0.00013486,2]
[351285966,1738505579547,-1272.0,0.00013498,2]
[351285967,1738505579559,-1121.926,0.00013498,2]
[351285968,1738505579569,-150.0,0.00013498,2]
[351285969,1738505579579,-637.0,0.00013498,2]
[351285970,1738505579588,-568.0,0.00013498,2]
[351285971,1738505579598,-1867.0,0.00013498,2]
[351285972,1738505579607,-907.0,0.00013498,2]